bitfinex/quotes_SOLUSD_20220307
["timestamp","ask_amount","ask_price","bid_price","bid_amount"]
[1646628632679,7.66126979,82.911,82.851,52.83947058]
[1646628632881,22.5435,82.91,82.851,52.83947058]
[1646628633083,6.032,82.909,82.851,52.83947058]
[1646628635084,22.5435,82.91,82.851,52.83947058]
[1646628636182,22.5435,82.91,82.852,27.6054183]
[1646628636583,22.5435,82.91,82.853,45.47053349]
[1646628636984,22.5435,82.91,82.854,18.88137488]
[1646628637188,22.5435,82.91,82.86,18.1005]
[1646628637388,22.5435,82.91,82.86,32.7805]
[1646628642191,15.02654514,82.909,82.86,14.68]
[1646628642395,15.02654514,82.909,82.854,24.6392]
[1646628643994,22.5435,82.91,82.854,24.6392]
[1646628648499,22.5435,82.91,82.86,18.1005]
[1646628649096,22.5435,82.91,82.854,24.6392]
[1646628649097,22.5435,82.91,82.861,2.83613526]
[1646628650098,22.5435,82.91,82.87,18.0977]
[1646628652701,22.5435,82.91,82.871,6.032]
[1646628659025,22.52195356,82.91,82.872,2.83613526]
[1646628659226,22.52195356,82.91,82.873,6.032]
[1646628659724,22.52195356,82.91,82.873,8.86813526]
[1646628660124,1.62926979,82.935,82.873,8.86813526]
[1646628660324,53.43145063,82.938,82.874,23.3641]
[1646628660325,24.3644,82.934,82.874,23.3641]
[1646628661131,24.3644,82.934,82.876,49.89032734]
[1646628661331,24.3644,82.934,82.877,6.03]
[1646628662934,24.3644,82.934,82.88,18.0963]
[1646628667742,45.99342575,82.933,82.88,18.0963]
[1646628672747,45.99342575,82.933,82.877,6.03]
[1646628672748,121.9,82.932,82.877,6.03]
[1646628672948,0.17375833,82.93,82.858,2.83613526]
[1646628673147,0.45664128,82.918,82.846,23.1817]
[1646628673347,1.62926979,82.915,82.846,23.1817]
[1646628673546,0.45664128,82.914,82.846,23.1817]
[1646628673746,2.08591107,82.916,82.847,51.54897935]
[1646628674049,0.45664128,82.914,82.847,51.54897935]
[1646628674449,0.45664128,82.912,82.847,51.54897935]
[1646628674849,0.45664128,82.913,82.847,51.54897935]
[1646628675250,2.08591107,82.913,82.847,51.54897935]
[1646628676650,1.62926979,82.912,82.847,51.54897935]
[1646628676848,0.45664128,82.913,82.847,51.54897935]
[1646628677051,121.9,82.912,82.847,51.54897935]
[1646628677649,121.9,82.91,82.847,51.54897935]
[1646628679353,121.9,82.907,82.847,51.54897935]
[1646628681657,6.033,82.906,82.847,51.54897935]
[1646628691892,121.9,82.907,82.847,51.54897935]
[1646628694798,6.033,82.906,82.847,51.54897935]
[1646628699000,0.20656492,82.905,82.831,26.58915861]
[1646628699199,0.20656492,82.905,82.827,15.67890829]
[1646628699200,0.37766108,82.902,82.827,15.67890829]
[1646628699400,0.47444662,82.896,82.812,15.67890829]
[1646628699603,0.47444662,82.893,82.813,22.5274]
[1646628699800,6.034,82.892,82.813,22.5274]
[1646628700000,0.47444662,82.891,82.814,53.47890577]
[1646628700200,0.47444662,82.889,82.814,53.47890577]
[1646628700401,6.034,82.888,82.82,18.1096]
[1646628701000,6.034,82.888,82.82,43.13875861]
[1646628701403,6.034,82.892,82.82,43.13875861]
[1646628701807,6.034,82.892,82.82,45.97489387]
[1646628702005,6.034,82.893,82.82,45.97489387]
[1646628702803,1.62926979,82.891,82.82,45.97489387]
[1646628703006,6.034,82.89,82.82,45.97489387]
[1646628704208,6.034,82.891,82.82,45.97489387]
[1646628705507,7.66326979,82.891,82.82,45.97489387]
[1646628705707,121.9,82.89,82.82,45.97489387]
[1646628705906,6.034,82.889,82.82,45.97489387]
[1646628706906,6.034,82.891,82.82,45.97489387]
[1646628707107,6.034,82.892,82.82,45.97489387]
[1646628707908,6.034,82.892,82.82,43.13875861]
[1646628708106,6.034,82.893,82.82,43.13875861]
[1646628708406,6.034,82.893,82.82,18.1096]
[1646628711313,6.034,82.893,82.814,53.47890577]
[1646628711512,1.62926979,82.889,82.814,53.47890577]
[1646628711717,1.62926979,82.885,82.814,53.47890577]
[1646628711913,45.99342575,82.882,82.814,53.47890577]
[1646628712116,127.935,82.881,82.814,53.47890577]
[1646628712720,121.9,82.879,82.814,53.47890577]
[1646628712943,6.035,82.878,82.814,53.47890577]
[1646628716322,6.035,82.878,82.813,22.5274]
[1646628725846,122.13640296,82.877,82.79,14.68]
[1646628726046,0.23640296,82.874,82.795,24.7952]
[1646628726245,6.035,82.873,82.795,24.7952]
[1646628726747,6.035,82.873,82.8,51.32776313]
[1646628727545,1.62926979,82.872,82.8,51.32776313]
[1646628727745,1.62926979,82.868,82.8,51.32776313]
[1646628728647,1.62926979,82.87,82.8,51.32776313]
[1646628729347,1.62926979,82.869,82.8,51.32776313]
[1646628729546,1.62926979,82.869,82.803,2.83613526]
[1646628729747,32.47416979,82.88,82.803,45.08497949]
[1646628729948,32.47416979,82.88,82.804,15.67890829]
[1646628730149,32.47416979,82.88,82.804,69.22246319]
[1646628730350,7.66426979,82.881,82.81,18.112]
[1646628730548,1.62926979,82.888,82.821,0.11564156]
[1646628730755,24.40166979,82.903,82.821,23.68304156]
[1646628730948,22.7724,82.903,82.821,23.68304156]
[1646628731149,22.7724,82.903,82.822,53.54312157]
[1646628731350,56.47043099,82.902,82.822,69.22202986]
[1646628731549,56.47043099,82.902,82.823,66.3858946]
[1646628731750,56.47043099,82.902,82.823,69.22202986]
[1646628731951,56.47043099,82.902,82.825,56.61119825]
[1646628732151,56.47043099,82.902,82.84,18.1027]
[1646628732351,56.47043099,82.902,82.841,22.7134]
[1646628734453,6.033,82.901,82.841,22.7134]
[1646628735354,56.47043099,82.902,82.841,22.7134]
[1646628739354,56.47043099,82.902,82.841,25.54953526]
[1646628742557,6.033,82.912,82.841,25.54953526]
[1646628742758,1.62926979,82.918,82.851,121.9]
[1646628742958,6.032,82.927,82.861,0.21172976]
[1646628743161,1.62926979,82.938,82.861,122.11172976]
[1646628743361,1.62926979,82.938,82.862,44.50174423]
[1646628743561,29.1632,82.943,82.862,126.92043534]
[1646628743757,29.1632,82.943,82.863,47.33787949]
[1646628743960,29.1632,82.943,82.864,23.9355]
[1646628744158,29.1632,82.943,82.87,18.0979]
[1646628744360,29.1632,82.943,82.87,32.7779]
[1646628744759,23.1322,82.943,82.871,30.3589712]
[1646628744959,23.1322,82.943,82.871,152.2589712]
[1646628745160,23.1322,82.943,82.872,56.8364549]
[1646628745563,23.1322,82.943,82.873,56.8364549]
[1646628745958,23.1322,82.943,82.874,56.8364549]
[1646628746262,23.1322,82.943,82.88,18.0937]
[1646628746459,23.1322,82.943,82.89,14.68]
[1646628746659,23.1322,82.943,82.891,57.43570188]
[1646628747059,23.1322,82.943,82.891,60.27183714]
[1646628747263,23.1322,82.943,82.892,2.83613526]
[1646628748260,23.1322,82.943,82.891,57.43570188]
[1646628748963,23.1322,82.943,82.891,75.29620188]
[1646628750461,23.1322,82.943,82.9,18.0897]
[1646628751262,23.1322,82.943,82.892,24.1739]
[1646628755166,23.1322,82.943,82.893,6.03]
[1646628761378,23.1322,82.943,82.892,24.1739]
[1646628762900,6.03,82.942,82.878,64.03487676]
[1646628763101,127.93,82.942,82.879,24.4371]
[1646628766000,127.93,82.942,82.88,6.03]
[1646628767801,6.03,82.942,82.88,6.03]
[1646628769307,23.1322,82.943,82.88,6.03]
[1646628771506,1.62926979,82.942,82.88,6.03]
[1646628772308,1.62926979,82.941,82.88,6.03]
[1646628772707,1.62926979,82.942,82.88,6.03]
[1646628773310,1.62926979,82.939,82.88,6.03]
[1646628773511,1.62926979,82.94,82.88,6.03]
[1646628773711,1.62926979,82.94,82.88,8.86613526]
[1646628774111,1.62926979,82.939,82.88,8.86613526]
[1646628774311,1.62926979,82.94,82.88,8.86613526]
[1646628775714,1.62926979,82.94,82.88,51.0689712]
[1646628776813,1.62926979,82.939,82.88,51.0689712]
[1646628777213,1.62926979,82.94,82.88,51.0689712]
[1646628777413,1.62926979,82.939,82.88,51.0689712]
[1646628778413,1.62926979,82.94,82.88,51.0689712]
[1646628778614,1.62926979,82.94,82.88,45.0389712]
[1646628781320,1.62926979,82.939,82.88,45.0389712]
[1646628781517,1.62926979,82.939,82.881,6.03]
[1646628782320,1.62926979,82.94,82.881,6.03]
[1646628783120,1.62926979,82.939,82.881,6.03]
[1646628786325,1.62926979,82.938,82.881,6.03]
[1646628787631,1.62926979,82.938,82.881,33.55283594]
[1646628788050,1.62926979,82.939,82.881,33.55283594]
[1646628788248,1.62926979,82.938,82.881,33.55283594]
[1646628789448,23.1322,82.943,82.88,14.68]
[1646628789449,1.62926979,82.934,82.88,14.68]
[1646628789651,1.62926979,82.932,82.88,14.68]
[1646628789849,24.9708,82.931,82.88,14.68]
[1646628790050,26.60006979,82.931,82.88,14.68]
[1646628790451,26.60006979,82.931,82.879,24.4371]
[1646628790653,121.9,82.93,82.863,6.03]
[1646628790854,4.35572446,82.929,82.863,6.03]
[1646628791055,0.39010243,82.926,82.842,26.30950261]
[1646628791257,1.62926979,82.912,82.826,63.08029352]
[1646628791453,1.62926979,82.903,82.826,63.08029352]
[1646628791653,1.62926979,82.899,82.826,63.08029352]
[1646628791853,147.51751034,82.898,82.826,63.08029352]
[1646628792056,0.40254055,82.896,82.811,26.30950261]
[1646628792253,127.934,82.895,82.827,26.30950261]
[1646628792458,0.40254055,82.894,82.827,26.30950261]
[1646628792659,24.4173,82.896,82.801,25.44610345]
[1646628792660,1.62926979,82.889,82.801,25.44610345]
[1646628792859,1.62926979,82.882,82.801,25.44610345]
[1646628793060,24.4173,82.896,82.795,24.05081703]
[1646628793061,121.9,82.879,82.795,24.05081703]
[1646628793256,0.40254055,82.876,82.791,23.1802]
[1646628793657,0.40254055,82.876,82.792,25.44610345]
[1646628794058,121.9,82.875,82.793,56.71631929]
[1646628794260,0.40254055,82.873,82.793,56.71631929]
[1646628794460,4.90538898,82.871,82.794,25.44610345]
[1646628794659,0.40254055,82.869,82.794,25.44610345]
[1646628794859,0.40254055,82.867,82.794,25.44610345]
[1646628795060,127.935,82.866,82.794,25.44610345]
[1646628795264,0.40254055,82.865,82.794,25.44610345]
[1646628795465,0.40254055,82.863,82.794,25.44610345]
[1646628795662,0.40254055,82.861,82.794,25.44610345]
[1646628795864,6.035,82.86,82.794,25.44610345]
[1646628796062,6.035,82.86,82.795,2.83613526]
[1646628798363,0.40254055,82.859,82.795,2.83613526]
[1646628798561,6.035,82.858,82.795,2.83613526]
[1646628798962,6.035,82.858,82.795,28.28223871]
[1646628799162,0.40254055,82.859,82.795,28.28223871]
[1646628799763,0.40254055,82.859,82.796,2.83613526]
[1646628800567,0.40254055,82.859,82.8,18.1129]
[1646628800964,0.40254055,82.859,82.801,2.83613526]
[1646628801164,24.3293,82.866,82.801,2.83613526]
[1646628801365,6.035,82.865,82.801,2.83613526]
[1646628804667,6.035,82.865,82.796,25.44610345]
[1646628806069,127.935,82.865,82.796,25.44610345]
[1646628806271,4.75076029,82.864,82.796,25.44610345]
[1646628806471,6.035,82.863,82.796,25.44610345]
[1646628807273,6.035,82.863,82.793,56.71631929]
[1646628810979,121.9,82.862,82.791,29.2162]
[1646628811178,0.1247846,82.861,82.791,29.2162]
[1646628811579,6.035,82.86,82.791,23.1802]
[1646628811776,0.1247846,82.859,82.791,23.1802]
[1646628811980,6.035,82.858,82.792,61.30870407]
[1646628812579,6.035,82.861,82.792,61.30870407]
[1646628812780,127.935,82.861,82.792,61.30870407]
[1646628813079,127.935,82.861,82.783,6.035]
[1646628813280,0.13276087,82.86,82.782,6.037]
[1646628813482,6.037,82.859,82.772,6.037]
[1646628813680,0.19389727,82.858,82.772,6.037]
[1646628813880,0.19389727,82.856,82.772,6.037]
[1646628814080,5.08265096,82.854,82.773,51.95652954]
[1646628814303,6.037,82.853,82.774,6.037]
[1646628814703,6.037,82.853,82.773,51.95652954]
[1646628814901,121.9,82.852,82.773,51.95652954]
[1646628815102,121.9,82.849,82.773,51.95652954]
[1646628815603,121.9,82.849,82.774,6.037]
[1646628816108,6.037,82.848,82.773,51.95652954]
[1646628816303,121.9,82.849,82.774,6.037]
[1646628818107,6.037,82.848,82.773,51.95652954]
[1646628821313,6.01520883,82.848,82.773,51.95652954]
[1646628825220,0.12419013,82.847,82.773,51.95652954]
[1646628825414,0.12419013,82.844,82.773,51.95652954]
[1646628825613,127.938,82.843,82.773,51.95652954]
[1646628826014,121.9,82.841,82.773,51.95652954]
[1646628826217,6.038,82.84,82.773,51.95652954]
[1646628826814,6.038,82.84,82.769,2.83613526]
[1646628827313,6.038,82.84,82.76,2.83613526]
[1646628827915,6.038,82.84,82.763,48.50479579]
[1646628829817,6.038,82.84,82.763,51.34093105]
[1646628830017,6.038,82.84,82.764,23.4242]
[1646628830620,6.038,82.84,82.764,48.87030345]
[1646628831918,6.038,82.84,82.764,51.70643871]
[1646628833726,6.038,82.84,82.764,26.26033526]
[1646628833922,6.038,82.84,82.765,25.44610345]
[1646628837625,6.038,82.84,82.764,23.4242]
[1646628837828,1.62926979,82.837,82.753,2.83613526]
[1646628838027,1.62926979,82.828,82.741,23.3791]
[1646628838228,1.62926979,82.821,82.741,23.3791]
[1646628838431,121.9,82.819,82.741,23.3791]
[1646628838729,121.9,82.815,82.742,48.65426213]
[1646628838926,6.04,82.814,82.742,48.65426213]
[1646628839728,6.04,82.814,82.741,23.3791]
[1646628844737,121.9,82.809,82.741,23.3791]
[1646628844939,18.136,82.81,82.741,23.3791]
[1646628844940,121.9,82.807,82.741,23.3791]
[1646628845338,6.04,82.806,82.731,18.1176]
[1646628845546,121.9,82.805,82.731,18.1176]
[1646628845740,6.04,82.804,82.732,58.18776771]
[1646628846139,121.9,82.803,82.732,58.18776771]
[1646628846338,6.041,82.802,82.732,58.18776771]
[1646628846742,121.9,82.801,82.732,58.18776771]
[1646628846944,5.34168966,82.799,82.732,58.18776771]
[1646628847343,121.9,82.797,82.732,58.18776771]
[1646628847543,6.041,82.796,82.732,58.18776771]
[1646628849965,121.9,82.795,82.732,58.18776771]
[1646628850168,6.041,82.794,82.732,58.18776771]
[1646628850865,127.941,82.794,82.732,58.18776771]
[1646628851566,127.941,82.794,82.726,17.7089]
[1646628851766,127.941,82.794,82.634,31.56358362]
[1646628851767,2.83613526,82.793,82.707,2.83613526]
[1646628851966,5.25297116,82.79,82.707,2.83613526]
[1646628852172,121.9,82.788,82.69,35.65363526]
[1646628852373,121.9,82.786,82.691,22.5291]
[1646628852567,121.9,82.784,82.706,73.16490022]
[1646628852867,6.042,82.783,82.706,73.16490022]
[1646628853266,121.9,82.782,82.706,73.16490022]
[1646628853471,4.3314801,82.781,82.71,18.1343]
[1646628853667,72.13816026,82.785,82.71,18.1343]
[1646628853668,6.042,82.784,82.71,18.1343]
[1646628853866,71.93856348,82.785,82.711,26.24557204]
[1646628854066,71.93856348,82.785,82.711,50.29638907]
[1646628854270,71.93856348,82.785,82.712,2.83613526]
[1646628854469,193.83856348,82.785,82.712,2.83613526]
[1646628854670,71.93856348,82.785,82.712,2.83613526]
[1646628855272,71.93856348,82.785,82.72,18.132]
[1646628855569,71.93856348,82.785,82.721,23.1611]
[1646628857874,193.83856348,82.785,82.721,23.1611]
[1646628858073,71.93856348,82.785,82.721,23.1611]
[1646628858884,4.32212116,82.784,82.7,14.68]
[1646628859081,4.32212116,82.784,82.696,2.83613526]
[1646628859082,6.042,82.783,82.707,23.1438]
[1646628859377,0.19959678,82.781,82.707,23.1438]
[1646628859578,1.62926979,82.777,82.68,2.83613526]
[1646628859776,126.37486228,82.769,82.67,18.1434]
[1646628859980,6.043,82.768,82.671,25.58013526]
[1646628860179,6.043,82.768,82.672,47.03458388]
[1646628860577,121.9,82.766,82.672,53.07858388]
[1646628860777,6.043,82.765,82.672,53.07858388]
[1646628860976,121.9,82.764,82.672,53.07858388]
[1646628861177,6.043,82.763,82.672,53.07858388]
[1646628861477,6.043,82.763,82.672,47.03458388]
[1646628861676,2.83613526,82.762,82.672,47.03458388]
[1646628861877,4.09820601,82.76,82.672,49.87071914]
[1646628862079,121.9,82.757,82.672,49.87071914]
[1646628862377,6.043,82.756,82.672,49.87071914]
[1646628862588,121.9,82.754,82.672,49.87071914]
[1646628862779,6.043,82.753,82.672,49.87071914]
[1646628863180,24.2682,82.755,82.68,18.1406]
[1646628863381,24.2682,82.755,82.681,6.043]
[1646628863580,24.2682,82.755,82.681,8.87913526]
[1646628863779,29.61528074,82.758,82.682,2.83613526]
[1646628863980,23.3136,82.772,82.683,6.043]
[1646628864180,23.3136,82.772,82.7,18.1364]
[1646628864380,23.3136,82.772,82.701,6.043]
[1646628864780,4.70556,82.771,82.701,2.83613526]
[1646628864983,68.18984323,82.77,82.699,59.51098805]
[1646628865287,121.9,82.769,82.699,59.51098805]
[1646628865481,6.043,82.768,82.699,59.51098805]
[1646628870091,6.043,82.768,82.699,77.91158805]
[1646628872492,6.043,82.768,82.699,18.4006]
[1646628872896,121.9,82.766,82.699,18.4006]
[1646628873093,6.043,82.765,82.699,18.4006]
[1646628873294,121.9,82.764,82.699,18.4006]
[1646628873495,4.10541179,82.762,82.699,18.4006]
[1646628873693,121.9,82.76,82.699,18.4006]
[1646628874094,6.043,82.759,82.699,18.4006]
[1646628874314,121.9,82.758,82.699,18.4006]
[1646628874513,6.043,82.757,82.699,18.4006]
[1646628874713,121.9,82.756,82.699,18.4006]
[1646628874913,6.043,82.755,82.699,18.4006]
[1646628875313,5.00373981,82.748,82.677,22.8718]
[1646628875516,121.9,82.746,82.64,14.68]
[1646628875712,121.9,82.746,82.612,4.87662535]
[1646628875713,0.3204398,82.745,82.63,14.68]
[1646628875913,6.046,82.744,82.631,25.70793526]
[1646628876114,121.9,82.742,82.632,52.96480705]
[1646628876312,5.27255637,82.739,82.632,55.80094231]
[1646628876513,127.02804772,82.729,82.632,52.96480705]
[1646628876714,121.9,82.727,82.633,2.83613526]
[1646628876913,6.047,82.726,82.633,2.83613526]
[1646628878116,6.047,82.726,82.64,18.1501]
[1646628878514,6.047,82.726,82.641,25.56073526]
[1646628878815,6.047,82.726,82.641,22.7246]
[1646628879016,6.047,82.726,82.642,2.83613526]
[1646628886423,6.047,82.726,82.65,18.1479]
[1646628886824,6.047,82.726,82.651,2.83613526]
[1646628887525,15.81740099,82.743,82.661,54.99773619]
[1646628887526,6.046,82.737,82.661,54.99773619]
[1646628887725,6.046,82.742,82.67,14.68]
[1646628887925,15.81740099,82.743,82.67,14.68]
[1646628888325,6.045,82.742,82.68,18.1386]
[1646628888926,127.945,82.742,82.672,24.1535]
[1646628889126,121.9,82.74,82.672,24.1535]
[1646628889426,6.045,82.739,82.672,24.1535]
[1646628894530,24.1965,82.741,82.672,24.1535]
[1646628895331,121.9,82.74,82.672,24.1535]
[1646628895930,24.1965,82.741,82.672,24.1535]
[1646628896732,121.9,82.74,82.672,24.1535]
[1646628898936,24.1965,82.741,82.672,24.1535]
[1646628900234,121.9,82.74,82.672,24.1535]
[1646628902237,6.045,82.739,82.672,24.1535]
[1646628902537,6.045,82.739,82.652,23.9241]
[1646628902538,4.63329019,82.737,82.652,23.9241]
[1646628902736,121.9,82.735,82.653,24.6331]
[1646628902937,6.046,82.734,82.653,24.6331]
[1646628903338,123.52926979,82.733,82.653,24.6331]
[1646628903638,6.046,82.732,82.653,24.6331]
[1646628903839,1.62926979,82.726,82.653,24.6331]
[1646628904041,126.85739686,82.724,82.653,24.6331]
[1646628904239,6.046,82.723,82.653,24.6331]
[1646628904839,2.83613526,82.722,82.653,24.6331]
[1646628905040,6.046,82.721,82.653,24.6331]
[1646628905443,2.83613526,82.72,82.653,24.6331]
[1646628905642,121.9,82.717,82.653,24.6331]
[1646628905844,4.98330031,82.715,82.653,24.6331]
[1646628906843,6.047,82.714,82.653,24.6331]
[1646628907043,121.9,82.713,82.653,24.6331]
[1646628907242,6.047,82.712,82.653,24.6331]
[1646628908144,127.947,82.712,82.653,24.6331]
[1646628909147,6.047,82.712,82.653,24.6331]
[1646628909344,121.9,82.711,82.653,24.6331]
[1646628909544,6.047,82.71,82.653,24.6331]
[1646628909745,121.9,82.709,82.653,24.6331]
[1646628909944,6.047,82.708,82.653,24.6331]
[1646628917671,6.047,82.708,82.628,18.3785]
[1646628917972,5.06077415,82.705,82.623,23.9849]
[1646628918171,6.048,82.704,82.623,23.9849]
[1646628919377,121.9,82.699,82.623,23.9849]
[1646628919573,6.048,82.698,82.623,23.9849]
[1646628919774,121.9,82.697,82.623,23.9849]
[1646628919975,121.9,82.695,82.623,23.9849]
[1646628920176,121.9,82.692,82.623,23.9849]
[1646628920375,6.049,82.691,82.623,23.9849]
[1646628923078,121.9,82.689,82.602,23.805]
[1646628923278,127.06665943,82.687,82.603,24.3249]
[1646628923478,6.049,82.686,82.603,24.3249]
[1646628923679,121.9,82.685,82.603,24.3249]
[1646628923879,121.9,82.679,82.603,24.3249]
[1646628924081,5.34715037,82.678,82.591,132.9095]
[1646628924282,0.1243511,82.676,82.591,132.9095]
[1646628924581,0.1243511,82.676,82.591,18.4095]
[1646628924780,121.9,82.674,82.591,18.4095]
[1646628924980,0.1243511,82.673,82.591,18.4095]
[1646628925179,126.64451549,82.659,82.591,18.4095]
[1646628925380,121.9,82.655,82.591,18.4095]
[1646628925579,6.051,82.654,82.591,18.4095]
[1646628925780,121.9,82.653,82.591,18.4095]
[1646628925980,0.13523638,82.651,82.591,18.4095]
[1646628926183,4.93049939,82.649,82.591,18.4095]
[1646628926381,121.9,82.647,82.561,24.3195]
[1646628926584,0.22583109,82.646,82.562,23.5415]
[1646628926784,0.22583109,82.646,82.562,22.0415]
[1646628926785,6.051,82.645,82.562,22.0415]
[1646628927085,122.12583109,82.644,82.548,2.83613526]
[1646628927282,122.12583109,82.644,82.503,121.9]
[1646628927283,6.053,82.643,82.541,23.5415]
[1646628927484,5.69519833,82.638,82.541,23.5415]
[1646628927686,127.48471028,82.629,82.525,2.83613526]
[1646628927884,121.9,82.619,82.521,24.774]
[1646628928084,30.7118,82.628,82.521,24.774]
[1646628928085,158.80564692,82.617,82.521,24.774]
[1646628928285,0.28152771,82.615,82.505,23.5415]
[1646628928483,6.054,82.616,82.505,23.5415]
[1646628928484,121.9,82.609,82.505,23.5415]
[1646628928685,121.9,82.589,82.505,23.5415]
[1646628928985,18.1845,82.59,82.505,23.5415]
[1646628928986,0.28152771,82.586,82.505,23.5415]
[1646628929385,121.9,82.585,82.505,23.5415]
[1646628929591,6.057,82.584,82.505,23.5415]
[1646628930386,6.057,82.584,82.506,59.83249364]
[1646628932385,6.057,82.584,82.51,18.1802]
[1646628933991,6.057,82.584,82.506,59.83249364]
[1646628937891,121.9,82.583,82.506,59.83249364]
[1646628938091,6.057,82.582,82.506,59.83249364]
[1646628939191,127.957,82.582,82.506,59.83249364]
[1646628939894,130.79313526,82.582,82.506,59.83249364]
[1646628940691,160.05010859,82.582,82.506,59.83249364]
[1646628940992,38.15010859,82.582,82.506,59.83249364]
[1646628942097,121.9,82.581,82.505,23.5415]
[1646628942295,121.9,82.581,82.491,42.7312]
[1646628942296,0.12490472,82.578,82.491,42.7312]
[1646628942695,157.21497333,82.577,82.491,42.7312]
[1646628942896,187.7916006,82.577,82.491,42.7312]
[1646628943095,121.9,82.575,82.492,47.78816312]
[1646628943295,4.76206441,82.568,82.492,47.78816312]
[1646628943496,6.058,82.567,82.492,47.78816312]
[1646628943794,121.9,82.566,82.492,47.78816312]
[1646628943995,6.058,82.565,82.492,47.78816312]
[1646628944395,121.9,82.563,82.492,47.78816312]
[1646628944594,121.9,82.56,82.492,47.78816312]
[1646628944799,6.058,82.559,82.492,47.78816312]
[1646628949303,6.058,82.56,82.492,47.78816312]
[1646628949504,6.058,82.567,82.5,18.1821]
[1646628949702,6.058,82.577,82.5,32.8621]
[1646628949902,6.058,82.577,82.501,2.83613526]
[1646628950401,48.3476457,82.576,82.501,2.83613526]
[1646628950903,48.3476457,82.576,82.51,18.1787]
[1646628951303,48.3476457,82.576,82.511,2.83613526]
[1646628952303,48.3476457,82.576,82.51,32.8587]
[1646628952304,5.65597679,82.574,82.51,14.68]
[1646628952705,23.8198,82.573,82.51,14.68]
[1646628952907,6.057,82.572,82.51,14.68]
[1646628954607,6.057,82.575,82.51,14.68]
[1646628955609,4.72378013,82.574,82.51,14.68]
[1646628955808,30.41,82.573,82.51,14.68]
[1646628956810,24.353,82.573,82.51,14.68]
[1646628957713,48.3476457,82.576,82.51,14.68]
[1646628959914,6.057,82.575,82.51,14.68]
[1646628961121,6.057,82.575,82.51,32.8593]
[1646628961319,6.057,82.584,82.51,32.8593]
[1646628961518,6.057,82.587,82.51,32.8593]
[1646628961717,24.7682,82.588,82.511,2.83613526]
[1646628962117,56.63585407,82.588,82.511,124.73613526]
[1646628962319,6.056,82.596,82.511,124.73613526]
[1646628962517,6.056,82.596,82.512,2.83613526]
[1646628963022,6.056,82.597,82.512,2.83613526]
[1646628963318,7.68526979,82.597,82.521,45.49786997]
[1646628963721,6.056,82.597,82.521,45.49786997]
[1646628964739,6.056,82.597,82.53,18.175]
[1646628964940,1.62926979,82.605,82.53,32.855]
[1646628965139,1.62926979,82.61,82.53,35.69113526]
[1646628965341,6.055,82.609,82.53,35.69113526]
[1646628965543,6.055,82.611,82.53,35.69113526]
[1646628965740,49.36583267,82.61,82.54,18.1707]
[1646628965941,121.9,82.609,82.54,14.68]
[1646628966239,6.055,82.608,82.54,14.68]
[1646628966640,121.9,82.606,82.54,14.68]
[1646628966839,6.055,82.605,82.54,14.68]
[1646628967642,121.9,82.606,82.54,14.68]
[1646628971150,6.055,82.605,82.54,14.68]
[1646628971947,6.055,82.605,82.531,6.055]
[1646628973049,6.055,82.605,82.53,18.1742]
[1646628975951,5.96143444,82.604,82.53,18.1742]
[1646628976154,6.055,82.603,82.53,18.1742]
[1646628984160,1.62926979,82.598,82.524,22.7544]
[1646628984358,1.62926979,82.592,82.51,18.1792]
[1646628984560,5.54505617,82.59,82.51,18.1792]
[1646628984758,121.9,82.588,82.51,18.1792]
[1646628985161,29.8849,82.589,82.53,18.1743]
[1646628985359,23.8289,82.589,82.53,18.1743]
[1646628986361,23.8289,82.589,82.517,59.06513925]
[1646628987963,1.62926979,82.585,82.5,14.68]
[1646628988164,6.057,82.584,82.491,20.79333526]